Cogmind - Beta 15 @@@ ROGUE MODE // 2025.06.26 @ 10:01:42 Player: Annull999 Result: Destroyed by S-10 Pest with Light Assault Rifle Performance ------------- Evolutions (1) 500 Regions Visited (3) 600 Robots Destroyed (9) 45 Value Destroyed (245) 245 Prototype IDs (0) 0 Alien Tech Used (0) 0 Bonus (0) 0 TOTAL SCORE: 1390 Bonus ------- None Cogmind --------- Core Integrity 0/400 Matter 300/300 Energy 100/100 System Corruption 0% Temperature Cool (0) Movement Core (50) Location -9/Materials Parts ------- > --- POWER (1) -------- (None) > --- PROPULSION (3) --- (None) > --- UTILITY (2) ------ (None) > --- WEAPON (3) ------- (None) > --- INVENTORY (5) ---- Ion Engine Huge Storage Unit Sensor Array ECM Suite Mining Laser Peak State ------------ > --- POWER ------------ Light Ion Engine > --- PROPULSION ------- Aluminum Leg Aluminum Leg Wheel > --- UTILITY ---------- Huge Storage Unit Sensor Array > --- WEAPON ----------- Medium Laser Assault Rifle Assault Rifle > --- INVENTORY -------- Ion Engine Light Treads Small Storage Unit Sensor Array ECM Suite Mining Laser [Rating: 9] Favorites ----------- Power Light Ion Engine Engine Light Ion Engine Propulsion Aluminum Leg Treads Light Treads Leg Aluminum Leg Wheel Wheel Utility Small Storage Unit Device Sensor Array Storage Small Storage Unit Weapon Assault Rifle Energy Gun Medium Laser Ballistic Gun Assault Rifle Build | -11 -10 -10 -9 ------- Run | Yrd Mat Min Mat Slots Evolved 2 | . . . 2 Power . | . . . . Propulsion 1 | . . . 1 Utility . | . . . . Weapon 1 | . . . 1 Parts Attached 9 | 2 1 . 6 Power 1 | 1 . . . Engine 1 | 1 . . . Core . | . . . . Reactor . | . . . . Propulsion 3 | . . . 3 Treads 1 | . . . 1 Leg 1 | . . . 1 Wheel 1 | . . . 1 Hover . | . . . . Flight . | . . . . Utility 3 | . 1 . 2 Device 1 | . 1 . . Storage 2 | . . . 2 Processor . | . . . . Hackware . | . . . . Protection . | . . . . Artifact . | . . . . Weapon 2 | 1 . . 1 Energy Gun 1 | . . . 1 Energy Cannon . | . . . . Ballistic Gun 1 | 1 . . . Ballistic Cannon . | . . . . Launcher . | . . . . Special Weapon . | . . . . Impact Weapon . | . . . . Slashing Weapon . | . . . . Piercing Weapon . | . . . . Special Melee Weapon . | . . . . Unidentified Prototypes . | . . . . Parts Lost 9 | . . . 9 Power 1 | . . . 1 Propulsion 3 | . . . 3 Utility 2 | . . . 2 Weapon 3 | . . . 3 Highest Loss Streak 9 | . . . 9 To Critical Strikes . | . . . . Average Backups 7 | 6 7 8 6 Power 1 | 1 1 1 1 Propulsion 2 | 4 4 2 1 Utility 2 | . 1 2 3 Weapon 1 | 1 1 2 1 Tool/Special . | . . . . Unused Backups 4 | . . . 4 Power 1 | . . . 1 Propulsion . | . . . . Utility 2 | . . . 2 Weapon 1 | . . . 1 Tool/Special . | . . . . Average Slot Usage (%) 90 | . 88 100 75 Engine 12 | . 14 14 8 Leg 25 | . 28 28 19 Wheel 1 | . . . 4 Device 10 | . 3 14 9 Storage 13 | . 14 14 11 Energy Gun 1 | . . . 6 Ballistic Gun 24 | . 28 28 14 Peak Build Rating 9 | 6 7 7 9 Average Rating 6 | 6 6 7 6 On Entrance 6 | 6 6 7 7 Naked Turns 2 | . . . 2 Heaviest Build 90 | 12 13 13 90 Greatest Support 20 | 20 20 20 20 Greatest Overweight (x) 8 | . . . 8 Average Overweight (x) . | . . . 2 Largest Inventory Capacity 25 | 8 8 8 25 Average Capacity 10 | 8 8 8 17 Most Carried 8 | 6 8 8 8 Average Carried 7 | 6 7 8 6 Final Capacity 8 | 8 8 8 5 Final Carried 8 | 6 8 8 5 Class Distribution -------------------- 90% | Mutant 9% | Skirmisher Dominant Class ---------------- Mutant | -10/Materials Mutant | -10/Mines Mutant | -9/Materials Resources | -11 -10 -10 -9 ----------- Run | Yrd Mat Min Mat Matter Collected 372 | 174 . 129 69 Remotely . | . . . . Salvage Created 304 | . . 138 166 Parts 22 | . . 10 12 Haulers Intercepted . | . . . . Recyclers Shooed . | . . . . Parts Field Recycled . | . . . . Retrieved Matter . | . . . . Parts Self-Destructed . | . . . . Prevented . | . . . . Kills | -11 -10 -10 -9 ------- Run | Yrd Mat Min Mat Combat Hostiles Destroyed 9 | . . 5 4 Guns 9 | . . 5 4 Classes Destroyed 3 | . . 2 1 Swarmer 4 | . . 3 1 Grunt 3 | . . 2 1 Sentry 2 | . . . 2 Best Kill Streak 3 | . . 3 2 Combat Bots Only 3 | . . 3 2 Max Kills in Single Turn 1 | . . 1 1 Gunslinging . | . . . . Exploded . | . . . . Melee . | . . . . Uniques/NPCs Destroyed . | . . . . Combat | -11 -10 -10 -9 -------- Run | Yrd Mat Min Mat Hostile Shots Fired 142 | . . 33 109 Missed 36 | . . 8 28 Hits 106 | . . 25 81 Projectile 106 | . . 25 81 AOE 1 | . . 1 . Critical Strikes 5 | . . 2 3 Damage Taken 1256 | . . 351 905 Core 480 | . . 73 407 Absorbed by Shields . | . . . . Core Remaining (%) 85 | 100 . 70 . Volleys Fired 33 | . . 14 19 Largest 3 | . . 2 3 Hottest 90 | . . 40 90 Shots Fired 61 | . . 28 33 Gun 61 | . . 28 33 Cannon . | . . . . Launcher . | . . . . Special . | . . . . Kinetic 43 | . . 28 15 Thermal 18 | . . . 18 Explosive . | . . . . Electromagnetic . | . . . . Robot Hit Streak 10 | . . 5 10 Robot Miss Streak 4 | . . 1 4 Penetration Max . | . . . . Secondary Targets 3 | . . 2 1 Max Gunslinging Chain 1 | . . 1 1 Shots Hit Robots 40 | . . 21 19 Core Hits 15 | . . 8 7 Critical Kills . | . . . . Critical Parts Destroyed . | . . . . Critical Strikes . | . . . . Melee Attacks . | . . . . Impact . | . . . . Slashing . | . . . . Piercing . | . . . . Sneak Attacks . | . . . . Combat Hostiles . | . . . . Follow-up Attacks . | . . . . Damage Inflicted 543 | . . 277 266 Guns 524 | . . 269 255 Cannons . | . . . . Explosions . | . . . . Melee . | . . . . Ramming 19 | . . 8 11 Kinetic 400 | . . 269 131 Thermal 124 | . . . 124 Explosive . | . . . . Electromagnetic . | . . . . Impact . | . . . . Slashing . | . . . . Piercing . | . . . . Highest Corruption . | . . . . Average Corruption . | . . . . Corruption Purged . | . . . . Corruption Blocked . | . . . . Overload Shots . | . . . . Overflow Damage . | . . . . Projectiles . | . . . . Explosions . | . . . . Melee . | . . . . Knockbacks . | . . . . Impact . | . . . . Kinetic . | . . . . Secondary . | . . . . Self-Inflicted Damage 3 | . . . 3 Shots . | . . . . Rammed 3 | . . . 3 Targets Rammed 5 | . . 1 4 Kicked 2 | . . 1 1 Crushed . | . . . . Highest Temperature 88 | . . 33 88 Average Temperature 28 | . . 11 37 Received Heat Transfer 375 | . . 159 216 Siege Activations . | . . . . Martial Activations . | . . . . Shielding Activations . | . . . . Robots Disrupted . | . . . . Combat Hostiles . | . . . . Robots Corrupted . | . . . . Combat Hostiles . | . . . . Parts Fried . | . . . . Impact Corruptions . | . . . . Robots Melted . | . . . . Combat Hostiles . | . . . . Parts Melted 3 | . . . 3 Heat Transferred 370 | . . . 370 Parts Sabotaged . | . . . . Parts Stolen . | . . . . Parts Stripped . | . . . . Power Chain Reactions . | . . . . Alert | -11 -10 -10 -9 ------- Run | Yrd Mat Min Mat Maximum Alert Level . | . . . . Low Security (%) 100 | 100 100 100 100 Level 1 . | . . . . Level 2 . | . . . . Level 3 . | . . . . Level 4 . | . . . . Level 5 . | . . . . High Security . | . . . . Max Security . | . . . . Peak Influence 87 | . . 80 87 Initial 15 | . . . 15 Average 26 | . . 36 33 Influence Increases 312 | . . 150 162 Destroy 0b10 Robot/C 180 | . . 100 80 Destroy Leader 40 | . . 20 20 Destroy Structure 2 | . . . 2 Lose Combat Pursuer 90 | . . 30 60 Influence Decreases 300 | . . 110 190 Entered New Map 25 | . . . 25 Time Decay 185 | . . 110 75 Lost Part 90 | . . . 90 Squads Dispatched 1 | . . . 1 Investigation . | . . . . Extermination . | . . . . Reinforcement 1 | . . . 1 Assault . | . . . . Garrison . | . . . . Intercept . | . . . . Searches Triggered . | . . . . Construction Impeded . | . . . . Haulers Reinforced . | . . . . Active Scanning Responses . | . . . . Cargo Convoy Interrupts . | . . . . Stealth | -11 -10 -10 -9 --------- Run | Yrd Mat Min Mat Distress Signals 1 | . . . 1 Communications Jammed . | . . . . Distress Signals . | . . . . Times Spotted 20 | . . 7 13 Peak Tracking Total 6 | . . 3 6 Tactical Retreats 5 | . . 2 3 Traps | -11 -10 -10 -9 ------- Run | Yrd Mat Min Mat Traps Triggered . | . . . . Indirectly . | . . . . Trap Hack Attempts . | . . . . Triggered . | . . . . Disarmed . | . . . . Reprogrammed . | . . . . Reused . | . . . . Traps Extracted . | . . . . Installed . | . . . . Triggered . | . . . . Machines | -11 -10 -10 -9 ---------- Run | Yrd Mat Min Mat Machines Disabled . | . . . . Max in Single Turn . | . . . . Machines Repaired . | . . . . Machines Dismantled . | . . . . Machines Sabotaged . | . . . . Overloaded Fab Kills . | . . . . Hacking | -11 -10 -10 -9 --------- Run | Yrd Mat Min Mat Machines Accessed 1 | . 1 . . Terminals 1 | . 1 . . Fabricators . | . . . . Repair Stations . | . . . . Recycling Units . | . . . . Scanalyzers . | . . . . Garrison Access . | . . . . Total Hacks 1 | . 1 . . Successful . | . . . . Failed 1 | . 1 . . Catastrophic 1 | . 1 . . Database Lockouts . | . . . . Manual 1 | . 1 . . Terminals 1 | . 1 . . Fabricators . | . . . . Repair Stations . | . . . . Recycling Units . | . . . . Scanalyzers . | . . . . Garrison Access . | . . . . Terminal Hacks . | . . . . Fabricator Hacks . | . . . . Repair Station Hacks . | . . . . Recycling Unit Hacks . | . . . . Scanalyzer . | . . . . Garrison Access Hacks . | . . . . Unauthorized Hacks . | . . . . Terminals . | . . . . Fabricators . | . . . . Repair Stations . | . . . . Recycling Units . | . . . . Scanalyzers . | . . . . Garrison Access . | . . . . Data Cores Recovered . | . . . . Used . | . . . . Hacking Detections 1 | . 1 . . Full Trace Events . | . . . . Feedback Events . | . . . . Feedback Blocked . | . . . . Robot Schematics Acquired . | . . . . Robots Built . | . . . . Authchips . | . . . . Time . | . . . . Total Robot Build Rating . | . . . . Part Schematics Acquired . | . . . . Parts Built . | . . . . Authchips . | . . . . Time . | . . . . Total Part Build Rating . | . . . . Parts Repaired . | . . . . Time . | . . . . Parts Recycled . | . . . . Recycled Matter . | . . . . Retrieved Matter . | . . . . Retrieved Components . | . . . . Parts Scanalyzed . | . . . . Part Schematics Acquired . | . . . . Parts Damaged . | . . . . Bothacking | -11 -10 -10 -9 ------------ Run | Yrd Mat Min Mat Used RIF Installer . | . . . . Robots Hacked . | . . . . Non-combat . | . . . . Combat . | . . . . Robot Hacks Applied . | . . . . Relay Couplers Released . | . . . . Fabnet Peak Effective % . | . . . . Robots Rewired . | . . . . Allies Hacked . | . . . . Hacks Repelled . | . . . . Allies | -11 -10 -10 -9 -------- Run | Yrd Mat Min Mat Total Allies . | . . . . Largest Group . | . . . . Highest-Rated Group . | . . . . Highest-Rated Ally . | . . . . Total Orders . | . . . . Ally Attacks . | . . . . Total Damage . | . . . . Kills . | . . . . Allies Corrupted . | . . . . Allies Melted . | . . . . Intel | -11 -10 -10 -9 ------- Run | Yrd Mat Min Mat Active Infowar (turns) 514 | . 37 308 169 Sensors 514 | . 37 308 169 Robot Analysis Total . | . . . . Derelict Logs Recovered . | . . . . Drone Launches . | . . . . Drone Recoveries . | . . . . Exploration | -11 -10 -10 -9 ------------- Run | Yrd Mat Min Mat Turns Passed 652 | 3 157 308 184 Spaces Moved 407 | 1 127 208 71 Core 8 | . . . 8 Treads 1 | . . . 1 Legs 377 | 1 127 208 41 Wheels 21 | . . . 21 Hover . | . . . . Flight . | . . . . Fastest Speed 100 | 120 120 120 100 Average Speed 124 | 120 120 120 146 Slowest Speed 480 | 120 120 120 480 Overloaded Moves . | . . . . Propulsion Burnouts . | . . . . Robots Hopped . | . . . . Potential Cave-ins . | . . . . Cave-ins Triggered . | . . . . Exploration Rate (%) 19 | 2 21 46 9 Regions Visited 3 Branch Regions 1 Pre-discovered Areas . | . . . . Known Exits Taken . | . . . . Unknown Exits Taken 3 | 1 1 1 . Scrap Searched 1 | . . 1 . Spaces Dug . | . . . . Terrain Destroyed . | . . . . Melee . | . . . . Projectile . | . . . . AOE . | . . . . Terrain Rammed . | . . . . Walls Destroyed . | . . . . Machines Disabled . | . . . . Actions | -11 -10 -10 -9 --------- Run | Yrd Mat Min Mat Total 491 | 2 132 238 119 Wait 32 | . . 14 18 Move 404 | . 126 207 71 Hop . | . . . . Pick Up 5 | . 4 1 . Fast Attach . | . . . . Attach 3 | . 1 . 2 Detach . | . . . . Swap 7 | 2 . . 5 Drop 2 | . 1 1 . Fire 33 | . . 14 19 Melee . | . . . . Ram 3 | . . . 3 Kick 2 | . . 1 1 Crush . | . . . . Escape Stasis . | . . . . Rewire . | . . . . Trap . | . . . . Miscellaneous . | . . . . Route ------- -11/Scrapyard -10/Materials -10/Mines (discovered 2 exits: [*Mat x2]) -9/Materials History --------- Turn | Location | Event 4 | -11/Scrapyard | Discovered new exit (range 0) 4 | -11/Scrapyard | Entered Materials 5 | -10/Materials | Met a group of wandering Federalists 106 | -10/Materials | Discovered new exit (range 16) 161 | -10/Materials | Entered Mines 172 | -10/Mines | Met a Derelict bent on vengeance 315 | -10/Mines | Build established: Mutant 319 | -10/Mines | Discovered new exit (range 12) 433 | -10/Mines | Discovered new exit (range 4) 469 | -10/Mines | Entered Materials 469 | -9/Materials | Evolved 2 slots: Propulsion x1, Weapon x1 640 | -9/Materials | Core integrity fell below 50% 649 | -9/Materials | Core integrity fell below 20% 653 | -9/Materials | Destroyed by S-10 Pest with Light Assault Rifle Last Messages --------------- 00602_ Assault Rifle destroyed. 00610_ Beam Rifle melted. 00610_ Heat Sink melted. 00610_ Y-45 Defender destroyed. 00612_ Lgt. Ion Engine destroyed. 00612_ Wheel destroyed. 00616_ Acquired 53 matter. 00617_ S-10 Pest destroyed. 00617_ Acquired 16 matter. 00624_ U-05 Engineer builds a Door. 00628_ Med. Laser destroyed. 00629_ Kicked S-10 Pest out of the way. 00630_ Aluminum Leg destroyed. 00630_ Slammed into Y-45 Defender. 00635_ K-01 Serf collects debris. 00638_ Sensor Array destroyed. 00641_ S-10 Pest destroyed. 00641_ K-01 Serf collects debris. 00651_ Sml. Storage Unit destroyed. 00652_ K-01 Serf collects debris. Map ----- +----------------------------------------------------+ | | | | | | | | | | | | | | | | | ?????????????????????????????????????????????????? | | ?????????????????????????????????????????????????? | | ?????????????????????????????????????????????????? | | ???????????????????????#?????????????????????????? | | ??????????????????????? ?????????????????????????? | | ??????????????????????# #????????????????????????? | | ?????????????????????## ##?????????#####?????????? | | ??????????????###????# #??????? ?# #?????????? | | ??????????????? ????? ???????? ?# #?????????? | | ???????????????# ???? ???????? ?# #?????????? | | ???????????????# ????# #???????# ## ###+####??? | | ???????????????# ???# #??????## ## #??? | | ???????????????# ???# ######## # #??? | | ????????????????? ??# = # #??? | | ?????????????????##/###/##### ## #### #??? | | ?????????????????# s s=sY ## #?# #???# #??? | | ?????????????????# ## #?# #???# #??? | | ?????????????????#=%[ =%@ ##/### ##### #??? | | ?????????????? + [= # + #??? | | ??????????? """ # #!!! # #??? | | ????????????""" ?# #!!! # #??? | | ????????????"""??# k #!!![#[! #??? | | ?????????????????# # *=+%%* #??? | | ?????????????????################=[ #??? | | ?????????????????????????????######+# #??? | | ?????????????????????????????# # | | ?????????????????????????????#""" # | | ?????????????????????????????#""" # | | ?????????????????????????????#""" # #######+ | | ?????????????????????????????# # #??????? | | ?????????????????????????????# ! # #??????? | | ?????????????????????????????######### ##??????? | | ?????????????????????????????????????# #???????? | | ?????????????????????????????????????+ +???????? | | ?????????????????????????????????????# #???????? | | ?????????????????????????????????????? #???????? | | ?????????????????????????????????????? #???????? | | ?????????????????????????????????????? #???????? | | ?????????????????????????????????????? #???????? | | ??????????????????????????????????????? ?????????? | | ?????????????????????????????????????????????????? | | ?????????????????????????????????????????????????? | +----------------------------------------------------+ Best States ------------- Heat Dissipation 28 Energy Generation 10 Energy Capacity 125 Matter Stores 300 Matter Capacity 300 Sight Range 16 Robot Scan Range 14 Terrain Scan Density 10 Evasion (%) 55 Recoil Reduction 1 Item Schematics ----------------- None Robot Schematics ------------------ None Fabricated ------------ Nothing Repaired ---------- Nothing Alien Tech Used ----------------- None Achievements -------------- None Challenges ------------ None Game ------ Seed DeepBurstSlayer Manual? 0 Play Time 00:11:11 Cumulative 15.5 hours Start 2025.06.26 @ 09:44:37 End 2025.06.26 @ 10:01:42 Sessions 1 Manual Loads 0 Difficulty Rogue Special Mode None Game No. 28 Rogue 28 Adventurer 0 Explorer 0 Win Type - Total 0 Types 0/0/0/0/0/0/0/0/0/0 Lore% 5 Gallery% 14 Achievement% 17 Wizard Run 0 Options --------- Layout 0 ASCII 1 Keyboard 0 Movement Numpad Keybinds 0 Fullscreen 1 Font 18/SmallcapsGlow Map View 76x50 Zoom Use 37% Tactical HUD 1 Map Filters NONE Filters NONE Steam X RUN: 118cb454-a392-47db-b29d-2f1105ab8c77